Workbook

Sheet Rockwell
B2: Periodische Prüfung zur Prüfmittelüberwachung nach Rockwell
T3: Rockwell-Härteskala | U3: Härtebereich | V3: B [±] HR | W3: r
B4: Prüfmaschine | S4: =IF(I6<=75,V4,V5) -> 2.0 | T4: A | U4: 20 HRA bis 75 HRA | V4: 2.0 | W4: ≤ 0,02 (100 - H) oder 0,8 HRA | X4: =0.02*(100-I6) -> 0.7 | Y4: 0.8 | Z4: =MAX(X4:Y4) -> 0.8
B5: MPA-Nummer der Härtevergleichsplatte | U5: > 75 HRA bis 95 HRA | V5: 1.5
B6: Zertifizierte Härte der Härtevergleichsplatte | I6: 65.00 | J6: [HR] | K6: C | S6: =IF(I6<=45,V6,IF(I6<=80,V7,V8)) -> 3.0 | U6: 10 HRBW bis 45 HRBW | V6: 4.0
B7: zulässige Anzeigeabweichung in HR | I7: =IF(K6="A",S4,IF(K6="B",S6,IF(K6="C",S9,IF(K6="D",S10,IF(K6="E",S24,IF(K6="F",S26,IF(K6="G",S28,IF(K6="H",S31,IF(K6="K",S32,IF(K6="HR-N",S35,IF(K6="HR-TW",S36,""))))))))))) -> 1.5 | J7: [HR] | T7: B | U7: > 45 HRBW bis 80 HRBW | V7: 3.0 | W7: ≤ 0,04 (130 - H) HRBW | X7: =0.04*(130-I6) -> 2.6
B8: zulässige Wiederholpräzision in HR | I8: =IF(K6="A",Z4,IF(K6="B",X7,IF(K6="C",Z9,IF(K6="D",Z10,IF(K6="E",X24,IF(K6="F",X26,IF(K6="G",X29,IF(K6="H",X31,IF(K6="K",X33,IF(K6="HR-N",Z35,IF(K6="HR-TW",Z36,""))))))))))) -> 0.80 | J8: [HR] | U8: > 80 HRBE bis 100 HRBW | V8: 2.0
B9: Obere Toleranzgrenze | I9: =I6+I7 -> 66.50 | J9: [HR] | S9: =V9 -> 1.5 | T9: C | U9: 10 HRC bis 70 HRC | V9: 1.5 | W9: ≤ 0,02 (100 - H) oder 0,8 HRC | X9: =0.02*(100-I6) -> 0.7 | Y9: 0.8 | Z9: =MAX(X9:Y9) -> 0.8
B10: Untere Toleranzgrenze | I10: =I6-I7 -> 63.50 | J10: [HR] | M10: Tel.: +49 (0)2773 9169261 www.siantec.de | S10: =IF(I6<=70,V10,V23) -> 2.0 | T10: D | U10: 40 HRD bis 70 HRD | V10: 2.0 | W10: ≤ 0,02 (100 - H) oder 0,8 HRD | X10: =0.02*(100-I6) -> 0.7 | Y10: 0.8 | Z10: =MAX(X10:Y10) -> 0.8
B12: Härtewerte in [HR]
C13: =(C14-C17)/3*4+C17 -> 67.0
C14: =I9 -> 66.5
C15: =(C14-C17)/3*2+C17 -> 66.0
C16: =(C14-C17)/3*1+C17 -> 65.5
C17: =I6 -> 65.0
C18: =(C20-C17)/3*1+C17 -> 64.5
C19: =(C20-C17)/3*2+C17 -> 64.0
C20: =I10 -> 63.5
C21: =(C20-C17)/3*4+C17 -> 63.0
U23: > 70 HRD bis 77 HRD | V23: 1.5
B24: Lfd. Nr. | C24: Prüfer | D24: Datum | E24: KW | F24: 1. Mess. | G24: 2. Mess. | H24: 3. Mess. | I24: 4. Mess. | J24: 5. Mess. | K24: Mittel-wert | L24: b | M24: r | N24: Bemerkungen | S24: =IF(I6<=90,V24,V25) -> 2.5 | T24: E | U24: 70 HREW bis 90 HREW | V24: 2.5 | W24: ≤ 0,04 (130 - H) HREW | X24: =0.04*(130-I6) -> 2.6
B25: 1 | C25: Herzog | D25: 2021-02-17 | E25: =IF(ISBLANK($D25),"",TRUNC((D25-WEEKDAY(D25,2)-DATE(YEAR(D25+4-WEEKDAY(D25,2)),1,-10))/7)) -> 7 | F25: 65.20 | G25: 65.30 | H25: 65.00 | I25: 65.10 | J25: 65.50 | K25: =IF(ISBLANK($F25),"",AVERAGE(F25:J25)) -> 65.22 | L25: =IF(ISBLANK($F25),"",(K25-$I$6)) -> 0.22 | M25: =IF(ISBLANK($G25),"",MAX(F25:J25)-MIN(F25:J25)) -> 0.50 | N25: Beispiel | Q25: =(I7+L25)/I7*100-100 -> 14.66666667 | R25: =Q25*0.6 -> 8.8 | U25: > 90 HREW bis 100 HREW | V25: 2.0
B26: 2 | E26: =IF(ISBLANK($D26),"",TRUNC((D26-WEEKDAY(D26,2)-DATE(YEAR(D26+4-WEEKDAY(D26,2)),1,-10))/7)) ->  | K26: =IF(ISBLANK($F26),"",AVERAGE(F26:J26)) ->  | M26: =IF(ISBLANK($G26),"",MAX(F26:J26)-MIN(F26:J26)) ->  | Q26: =(I7+L26)/I7*100-100 ->  | R26: =Q26*0.6 ->  | S26: =IF(I6<=90,V26,V27) -> 3.0 | T26: F | U26: 60 HRFW bis 90 HRFW | V26: 3.0 | W26: ≤ 0,04 (130 - H) HRFW | X26: =0.04*(130-I6) -> 2.6
B27: 3 | K27: =IF(ISBLANK($F27),"",AVERAGE(F27:J27)) ->  | L27: =IF(ISBLANK($F27),"",(K27-$I$6)) ->  | M27: =IF(ISBLANK($G27),"",MAX(F27:J27)-MIN(F27:J27)) ->  | Q27: =(I7+L27)/I7*100-100 ->  | U27: > 90 HRFW bis 100 HRGW | V27: 2.0
B28: 4 | Q28: =(I7+L28)/I7*100-100 ->  | S28: =IF(I6<=50,V28,IF(I6<=75,V29,V30)) -> 4.5 | U28: 30 HRGW bis 50 HRGW | V28: 6.0
B29: 5 | Q29: =(I7+L29)/I7*100-100 ->  | T29: G | U29: > 50 HRGW bis 75 HRGW | V29: 4.5 | W29: ≤ 0,04 (130 - H) HRGW | X29: =0.04*(130-I6) -> 2.6
B30: 6 | Q30: =(I7+L30)/I7*100-100 ->  | U30: > 75 HRGW bis 94 HRGW | V30: 3.0
B31: 7 | Q31: =(I7+L31)/I7*100-100 ->  | S31: =V31 -> 2.0 | T31: H | U31: 80 HRHW bis 100 HRHW | V31: 2.0 | W31: ≤ 0,04 (130 - H) HRHW | X31: =0.04*(130-I6) -> 2.6
B32: 8 | L32: =IF(ISBLANK($F32),"",(K32-$I$6)) ->  | M32: =IF(ISBLANK($G32),"",MAX(F32:J32)-MIN(F32:J32)) ->  | Q32: =(I7+L32)/I7*100-100 ->  | S32: =IF(I6<=60,V32,IF(I6<=80,V33,V34)) -> 3.0 | U32: 40 HRKW bis 60 HRKW | V32: 4.0
B33: 9 | Q33: =(I7+L33)/I7*100-100 ->  | T33: K | U33: > 60 HRKW bis 80 HRKW | V33: 3.0 | W33: ≤ 0,04 (130 - H) HRKW | X33: =0.04*(130-I6) -> 2.6
B34: 10 | Q34: =(I7+L34)/I7*100-100 ->  | U34: > 80 KRKW bis 100 HRKW | V34: 2.0
B35: 11 | Q35: =(I7+L35)/I7*100-100 ->  | S35: =V35 -> 2.0 | T35: 15N , 30 N , 45 N | U35: Alle Bereiche | V35: 2.0 | W35: ≤ 0,04 (130 - H) oder 1,2 HR-N | X35: =0.04*(130-I6) -> 2.6 | Y35: 1.2 | Z35: =MAX(X35:Y35) -> 2.6
B36: 12 | Q36: =(I7+L36)/I7*100-100 ->  | S36: =V36 -> 3.0 | T36: 15T , 30T , 45T | U36: Alle Bereiche | V36: 3.0 | W36: ≤ 0,06 (130 - H) oder 2,4 HR-TW | X36: =0.03*(130-I6) -> 1.95 | Y36: 2.4 | Z36: =MAX(X36:Y36) -> 2.4
B37: 13 | Q37: =(I7+L37)/I7*100-100 -> 
B38: 14 | Q38: =(I7+L38)/I7*100-100 -> 
B39: 15 | Q39: =(I7+L39)/I7*100-100 -> 
B40: 16 | Q40: =(I7+L40)/I7*100-100 -> 
B41: 17 | Q41: =(I7+L41)/I7*100-100 -> 
B42: 18 | Q42: =(I7+L42)/I7*100-100 -> 
B43: 19 | Q43: =(I7+L43)/I7*100-100 -> 
B44: 20 | Q44: =(I7+L44)/I7*100-100 -> 
B45: 21 | Q45: =(I7+L45)/I7*100-100 -> 
B46: 22 | Q46: =(I7+L46)/I7*100-100 -> 
B47: 23 | Q47: =(I7+L47)/I7*100-100 -> 
B48: 24 | Q48: =(I7+L48)/I7*100-100 -> 
B49: 25 | Q49: =(I7+L49)/I7*100-100 -> 
B50: 26 | Q50: =(I7+L50)/I7*100-100 -> 
B51: 27 | Q51: =(I7+L51)/I7*100-100 -> 
B52: 28 | Q52: =(I7+L52)/I7*100-100 -> 
B53: 29 | Q53: =(I7+L53)/I7*100-100 -> 
B54: 30 | Q54: =(I7+L54)/I7*100-100 -> 
B55: 31 | Q55: =(I7+L55)/I7*100-100 -> 
B57: Erläuterungen:
B58: b | C58: = Abweichung der Maschine in HR - Einheiten der angewandten Skala
B59: r | C59: = Wiederholpräzision der Härteprüfmaschine in HR - Einheiten der angewandten Skala.
